{"text_format":"1","workbook":"xlsx","n_sheets":1,"sheets":["IMPACT"],"not_rendered":{"charts":0,"images":1,"macros":1,"external_links":0,"defined_names":5,"comments":0,"pivot_tables":0},"unopened":[],"bounds":{"document_bytes":16777216,"sheet_cells":100000,"rows_first":2000,"rows_last":500,"rows_between":2000,"halvings":0,"cell_chars":16384,"cell_head_chars":4096},"cells_cut":0,"cells_raw":0,"read":"whole","date_system":"1900"}

{"sheet":"IMPACT","index":0,"n_rows":213,"n_cols":20,"rows_kept":213,"cut":false,"hidden":false,"merged":[[30,0,30,7],[22,0,22,7],[13,0,13,7],[8,0,8,7],[174,4,174,6],[172,0,172,3],[172,4,172,7],[173,0,173,3],[173,4,173,7],[120,0,120,3],[120,4,120,7],[140,4,140,6],[140,1,140,2],[138,0,138,2],[148,1,148,2],[148,4,148,6],[146,0,146,2],[147,0,147,2],[147,4,147,7],[96,4,96,7],[108,0,108,3],[123,0,123,7],[130,4,130,7],[132,1,132,2],[190,0,192,1],[194,0,194,1],[150,0,150,7],[154,0,155,1],[158,0,159,1],[154,4,155,5],[158,4,159,5],[178,0,178,7],[167,0,167,3],[167,4,167,7],[170,4,171,5],[170,0,171,1],[168,1,168,2],[168,4,168,6],[174,1,174,2],[185,0,185,3],[164,0,165,1],[189,4,189,7],[193,2,193,7],[187,1,187,2],[184,3,184,7],[175,0,175,7],[176,0,176,7],[179,0,180,0],[185,4,185,7],[186,0,186,3],[146,4,146,7],[130,0,130,2],[139,0,139,2],[139,4,139,7],[149,0,149,7],[142,0,143,0],[144,0,145,0],[156,1,156,2],[156,4,156,6],[160,1,160,2],[160,4,160,6],[183,0,184,0],[183,1,183,2],[183,3,183,7],[184,1,184,2],[181,0,182,0],[161,0,161,3],[161,4,161,7],[162,0,162,3],[162,4,162,7],[166,0,166,3],[166,4,166,7],[212,0,212,7],[203,4,203,7],[209,0,209,7],[210,0,210,7],[211,0,211,7],[186,4,186,7],[195,0,195,3],[195,4,195,7],[196,0,196,3],[196,4,196,7],[189,0,189,1],[193,0,193,1],[205,0,205,7],[206,0,206,7],[208,0,208,7],[202,4,202,7],[200,0,201,0],[204,1,204,2],[204,4,204,6],[202,0,202,2],[203,0,203,2],[187,4,187,6],[198,0,199,0],[192,6,192,7],[0,1,0,7],[1,1,1,7],[3,0,3,1],[4,0,4,1],[5,0,5,1],[6,0,6,1],[12,0,12,3],[9,0,9,7],[19,4,19,7],[14,0,14,7],[6,2,6,7],[3,2,3,3],[4,2,4,3],[5,2,5,3],[3,4,5,7],[12,5,12,7],[7,5,7,7],[10,6,10,7],[11,6,11,7],[7,0,7,2],[2,0,2,7],[92,4,92,7],[119,0,119,3],[85,0,85,3],[85,4,85,7],[88,0,89,1],[100,0,100,7],[94,0,95,1],[94,4,95,5],[86,1,86,2],[111,7,112,7],[115,1,115,2],[111,0,112,0],[111,3,112,4],[115,4,115,7],[117,0,118,0],[117,3,118,4],[114,0,114,3],[113,0,113,3],[113,4,113,7],[114,4,114,7],[69,4,69,7],[70,4,70,7],[76,0,77,1],[76,4,77,5],[82,0,83,1],[82,4,83,5],[109,1,109,2],[109,4,109,6],[119,4,119,7],[72,0,72,7],[73,0,73,7],[97,0,97,3],[97,4,97,7],[107,0,107,3],[107,4,107,7],[90,4,90,7],[84,0,84,3],[84,4,84,7],[78,0,78,3],[99,0,99,7],[91,0,91,3],[91,4,91,7],[93,0,93,7],[92,1,92,2],[47,0,48,0],[49,0,50,0],[51,0,52,0],[98,1,98,2],[98,4,98,6],[103,0,104,0],[96,0,96,3],[105,0,106,0],[64,4,64,7],[53,0,54,0],[55,0,56,0],[57,0,58,0],[59,0,60,0],[61,0,62,0],[80,1,80,2],[80,4,80,6],[67,0,68,0],[78,4,78,7],[75,0,75,7],[79,0,79,3],[79,4,79,7],[86,4,86,6],[88,4,89,5],[90,0,90,3],[20,4,20,7],[21,1,21,2],[21,4,21,6],[19,0,19,2],[20,0,20,2],[27,0,27,2],[27,4,27,7],[28,0,28,2],[28,4,28,7],[29,1,29,2],[29,4,29,6],[35,0,35,2],[36,0,36,2],[37,1,37,2],[37,4,37,6],[65,1,65,2],[65,4,65,6],[71,1,71,2],[71,4,71,6],[69,0,69,2],[70,0,70,2],[36,4,36,7],[38,0,38,7],[35,4,35,7],[63,4,63,7],[63,0,63,2],[39,0,39,7],[45,0,46,0],[42,0,43,0],[64,0,64,2],[66,0,66,7],[41,0,41,7],[40,0,40,7],[164,4,165,5],[108,4,108,7],[132,4,132,6],[126,0,127,0],[128,0,129,0],[138,4,138,7],[121,1,121,2],[121,4,121,7],[134,0,135,0],[136,0,137,0],[131,0,131,2],[131,4,131,7],[122,0,122,7]]}
[null,"FY17 IMPACT / OUTCOMES / LASTING CHANGE INFORMATION - PROJECTS AND INITIATIVES",null,null,null,null,null,null,null,null,"Country","Region","CI member or Affiliate member","Type of Donor","Donors","Start-End dates","Program Type Classification","Type of outcomes ","Geographical scope","Yes/No"]
[null,"Please fill this form answering all questions that are relevant and applicable to those projects or initiatives that, at any point of FY17 (July 1st, 2016 - June 30th, 2017), have compiled and documented evidence of impact/outcomes/lasting change for any of the 25 global indicators of the  CARE 2020 Program Strategy, or any other supplementary  indicator that relates to the outcomes and approach of the CARE 2020 Program Strategy.  For more guidance or details, please go the CARE International wiki for Monitoring, Evaluation and Learning, here: http://careglobalmel.care2share.wikispaces.net/ \n\nIn order to simplify the filling out process, the form has macros that make the reporting more dynamic and allow the display or hiding of questions, depending on the data you provide. Please make sure you \"enable macros\" when you open the form in Excel. If  you are not able to enable macros in Excel, don't worry! The form will still display all its contact correctly. You will only miss the displaying/hiding of questions depending on what's relevant for your project.\n\nAdditional guidance on how to report data in this form:\n- The data reported must be well supported by baselines, impact evaluations, outcome monitoring, research studies or solid project reports. \n- All the information reported in this form should be comparable and show changes taking place, that means, should provide with reference of baseline AND latest measurement data. If your project/initiative ONLY has baseline data this year and no other measurement has taken place yet, please do not report it in this FY. You should only report data when you can already narrate the changes taking place in your project/initiative.\n- For your reference, there is a green section under each indicator where the form generates automatic calculations on how yout impact/outcome data translates into Contribution to the CARE 2020 Program Strategy targets. \n\n- For baseline data: the baseline figures reported should be the one-time/single figures obtained during the baseline study. It cannot include figures from other measurements in previous years to this FY, made during the implementation of the project/initiative. \n- For latest measurement data: If you already reported impact/outcome/lasting change data last year, you should only include any NEW information that was not already reported in FY16, or any data that you would like to amend from FY16. On the other hand, if only have solid latest measurement figures, provide those – and try to provide an estimate for baseline, based on national statistics or other valid source.\n\nPlease make sure that all the information provided has been discussed and validated by all key staff involved in the implementation of the project, before submitting to PIIRS. If there are sections in which you don't have data to report, please just leave them blank (no need to put zeros).\n\nIf you have questions on how to report impact data in this form, please contact piirs@careinternational.org  ",null,null,null,null,null,null,null,null,"(Select from list)","(Select from list)","(Select from list)","(Select from list)","(Select from list)","2016-06-30","(Select from list)","(Select from list)","(Select from list)","(Select from list)"]
["Section 1:  General information on the project or initiative",null,null,null,null,null,null,null,null,null,"Afghanistan","Africa - East and Central","CARE Australia","Government","Bill & Melinda Gates Foundation","2017-07-01","Humanitarian Sexual, Reproductive and Maternal Health (SRMH)","Development","Sub-National","YES"]
["Country",null,"(Select from list)",null,null,null,null,null,null,null,"Albania","Africa - Southern","CARE Canada","Foundation","ECHO - European Commission for Humanitarian Aid and Civil Protection",null,"Humanitarian A Life Free From Violence (GBV)","Humanitarian","National","NO"]
["Region",null,"(Select from list)",null,null,null,null,null,null,null,"Algeria","Africa - Western","CARE Danmark","Corporation","EU - European Union (other than ECHO)",null,"Humanitarian Food & Nutrition Security and Resilience to Climate Change","Both development and humanitarian outcomes/impacts","Multiple countries"]
["Project/Initiative code in PIIRS system \n(if applicable)",null,null,null,null,null,null,null,null,null,"Andorra","Asia and the Pacific","CARE Deutschland-Luxemburg","Individual supporter","Government - Australia",null,"Humanitarian Access to and Control over Economic Resources",null,"Regional"]
["Project/Initiative name",null,null,null,null,null,null,null,null,null,"Angola","Latin America and the Caribbean","CARE Egypt","Multilateral agency","Government - Austria",null,"Humanitarian Other",null,"Global"]
["Is the baseline/evaluation document containing the quantitative and qualitative data reported in this form accessible in the CI  Electronic Evaluation Library or other platform?\n\nIf you want to know more on the CI Electronic Evaluation Library, please go to http://www.careevaluations.org/",null,null,null,"Please provide the link(s) ",null,null,null,null,null,"Antigua and Barbuda","Middle East, North Africa and Europe","CARE France","Other","Government - Belgium",null,"Development Sexual, Reproductive and Maternal Health (SRMH)",null,"Other"]
["Section 2:  Fiscal year information - Quantitative Contribution to CARE's Global Outcomes and Approach ",null,null,null,null,null,null,null,null,null,"Argentina","North America","CARE India",null,"Government - Canada",null,"Development A Life Free From Violence (GBV)"]
["Please select YES for the Outcome Areas or Elements of the Approach for which the project/initiative has collected and documented evidence of impact/outcomes/change in this FY. \nImportant Note: The form will automatically hide all questions related  to those areas where you have clicked NO. Please make sure you have selected all the relevant ones.",null,null,null,null,null,null,null,null,null,"Armenia",null,"CARE Indonesia",null,"Government - Denmark",null,"Development Food & Nutrition Security and Resilience to Climate Change"]
["Poverty and Social Injustice","Humanitarian","Sexual, Reproductive and Maternal Health Rights","The Right to a Life Free from Violence","Food and Nutrition Security & Climate Change Resilience","Women's Economic Empowerment","CARE Approach\nStrengthening gender equality and women's voice \nPromoting inclusive governance\nIncreasing resilience",null,null,null,"Aruba",null,"CARE Japan",null,"Government - Finland",null,"Development Access to and Control over Economic Resources"]
["(Select from list)","(Select from list)","(Select from list)","(Select from list)","(Select from list)","(Select from list)","(Select from list)",null,null,null,"Australia",null,"CARE Morocco",null,"Government - France",null,"Development Other"]
["Please provide with the average household size for the impact population  in the area where the project/initiative measured the impact/outcomes/lasting change reported below. The average household size is critical for data analysis and extrapolation (when relevant).",null,null,null,null,null,null,null,null,null,"Austria",null,"CARE Nederland",null,"Government - Germany"]
["Outcome: Poverty and Social Injustice",null,null,null,null,null,null,null,null,null,"Azerbaijan",null,"CARE Norge",null,"Government - India"]
["Indicator 1. % of the population below the international poverty line (SDG indicator 1.1.1)",null,null,null,null,null,null,null,null,null,"Bahamas",null,"CARE Österreich",null,"Government - Ireland"]
["Baseline","% population below the international poverty line in the population on which CARE seeks to impact",null,"% women and girls below the international poverty line in the population on which CARE seeks to impact",null,"% men and boys below the international poverty line in the population on which CARE seeks to impact",null,{"$f":"IF(AND(E16=\"\",G16=\"\"),\"\",IF(C16>G16,IF(C16>E16,\"Attention: Total % figure can't be higher than % for women and girls and/or % for men and boys\",\"\"),\"\"))","v":""},null,null,"Bahrain",null,"CARE Peru",null,"Government - Japan"]
[null,"Total # people in the population on which CARE seeks to impact",null,"# women and girls in the population on which CARE seeks to impact",null,"# men and boys in the population on which CARE seeks to impact",null,{"$f":"IF(AND(E17=\"\",G17=\"\"),\"\",IF(C17>G17,IF(C17>E17,\"\",\"Attention: Total # figure should be higher than # for women and girls and/or # for men and boys\"),\"Attention: Total # figure should be higher than # for women and girls and/or # for men and boys\"))","v":""},null,null,"Bangladesh",null,"CARE UK",null,"Government - Luxemburg"]
["Latest measurement in the FY",{"$f":"B16","v":"% population below the international poverty line in the population on which CARE seeks to impact"},null,{"$f":"D16","v":"% women and girls below the international poverty line in the population on which CARE seeks to impact"},null,{"$f":"F16","v":"% men and boys below the international poverty line in the population on which CARE seeks to impact"},null,{"$f":"IF(AND(E18=\"\",G18=\"\"),\"\",IF(C18>G18,IF(C18>E18,\"Attention: Total % figure can't be higher than % for women and girls and/or % for men and boys\",\"\"),\"\"))","v":""},null,null,"Belarus",null,"CARE USA",null,"Government - Netherlands"]
[null,{"$f":"B17","v":"Total # people in the population on which CARE seeks to impact"},null,{"$f":"D17","v":"# women and girls in the population on which CARE seeks to impact"},null,{"$f":"F17","v":"# men and boys in the population on which CARE seeks to impact"},null,{"$f":"IF(AND(E19=\"\",G19=\"\"),\"\",IF(C19>G19,IF(C19>E19,\"\",\"Attention: Total # figure should be higher than # for women and girls and/or # for men and boys\"),\"Attention: Total # figure should be higher than # for women and girls and/or # for men and boys\"))","v":""},null,null,"Belgium",null,"Chrysalis (Sri Lanka)",null,"Government - Norway"]
["Please describe the exact indicator you have used in your project or initiative, reported in the figures above",null,null,"Does the impact population number reported above include family members","Please share any additional comments you may have about the reporting of the project's contribution to this indicator. Examples: additional details on the data reported above (e.g. dates of the measurement), data from previous measurements, data with a different level of disaggregation (e.g. age, class, race, etc.), qualitative data supporting this data, etc. ",null,null,null,null,null,"Belize",null,"Raks Thai Foundation",null,"Government - Peru"]
[null,null,null,"(Select from list)",null,null,null,null,null,null,"Benin",null,"CI Secretariat",null,"Government - Sweden"]
["Contribution to CARE's 2020 Program Strategy targets:","Total new impact related to this indicator\n(# additional people that are no longer below the international poverty line) ",null,{"$f":"IFERROR(C16*C19-C18*C19,\"\")","v":0},"Total new impact towards Outcome Area targets (including family members)\n",null,null,{"$f":"IFERROR(IF(D21=\"NO\",D22*$E$13,D22),D22)","v":0},null,null,"Bhutan",null,"Other",null,"Government - Switzerland"]
["Indicator 2. % of the population living below the national poverty line (SDG indicator 1.2.1)",null,null,null,null,null,null,null,null,null,"Bolivia",null,null,null,"Government - Thailand"]
["Baseline","% population below the national poverty line in the population on which CARE seeks to impact",null,"% women and girls below the national poverty line in the population on which CARE seeks to impact",null,"% men and boys below the national poverty line in the population on which CARE seeks to impact",null,{"$f":"IF(AND(E24=\"\",G24=\"\"),\"\",IF(C24>G24,IF(C24>E24,\"Attention: Total % figure can't be higher than % for women and girls and/or % for men and boys\",\"\"),\"\"))","v":""},null,null,"Bosnia and Herzegovina",null,null,null,"Government - UK"]
[null,"Total # people in the in the population on which CARE seeks to impact",null,"# women and girls in thein the population on which CARE seeks to impact",null,"# men and boys in the impact population on which CARE seeks to impact",null,{"$f":"IF(AND(E25=\"\",G25=\"\"),\"\",IF(C25<(G25+E25),IF(C25<(G25+E25),\"Attention: Total # figure can't be smaller than the sum of # for women and girls and/or # for men and boys\",\"\"),\"\"))","v":""},null,null,"Botswana",null,null,null,"Government - US"]
["Latest measurement in the FY",{"$f":"B24","v":"% population below the national poverty line in the population on which CARE seeks to impact"},null,{"$f":"D24","v":"% women and girls below the national poverty line in the population on which CARE seeks to impact"},null,{"$f":"F24","v":"% men and boys below the national poverty line in the population on which CARE seeks to impact"},null,{"$f":"IF(AND(E26=\"\",G26=\"\"),\"\",IF(C26>G26,IF(C26>E26,\"Attention: Total % figure can't be higher than % for women and girls and/or % for men and boys\",\"\"),\"\"))","v":""},null,null,"Brazil",null,"Other",null,"The Global Fund to Fight AIDS, Tuberculosis and Malaria"]
[null,{"$f":"B25","v":"Total # people in the in the population on which CARE seeks to impact"},null,{"$f":"D25","v":"# women and girls in thein the population on which CARE seeks to impact"},null,{"$f":"F25","v":"# men and boys in the impact population on which CARE seeks to impact"},null,{"$f":"IF(AND(E27=\"\",G27=\"\"),\"\",IF(C27<(G27+E27),IF(C27<(G27+E27),\"Attention: Total # figure can't be smaller than the sum of # for women and girls and/or # for men and boys\",\"\"),\"\"))","v":""},null,null,"Brunei",null,null,null,"The World Bank"]
["Please describe the exact indicator you have used in your project or initiative, reported in the figures above",null,null,"Does the impact population number reported above include family members","Please share any additional comments you may have about the reporting of the project's contribution to this indicator. Examples: additional details on the data reported above (e.g. dates of the measurement), data from previous measurements, data with a different level of disaggregation (e.g. age, class, race, etc.), qualitative data supporting this data, etc. ",null,null,null,null,null,"Bulgaria",null,null,null,"UN - United Nations agencies/offices"]
[null,null,null,"(Select from list)",null,null,null,null,null,null,"Burkina Faso",null,null,null,"Other"]
["Contribution to CARE's 2020 Program Strategy targets:","Total new impact related to this indicator\n(# additional people that are no longer below the national poverty line) ",null,{"$f":"IFERROR(C24*C27-C26*C27,\"\")","v":0},"Total new impact towards Outcome Area targets (including family members)",null,null,{"$f":"IFERROR(IF(D29=\"NO\",D30*$E$13,D30),D30)","v":0},null,null,"Burma"]
["Indicator 3. % of the population living in households with access to basic services (SDG indicator 1.4.1)",null,null,null,null,null,null,null,null,null,"Burundi"]
["Baseline","% population  living in households with access to basic services in the population on which CARE seeks to impact",null,"% women and girls living in households with access to basic services in the population on which CARE seeks to impact",null,"% men and boys living in households with access to basic services in the population on which CARE seeks to impact",null,{"$f":"IF(AND(E32=\"\",G32=\"\"),\"\",IF(C32>G32,IF(C32>E32,\"Attention: Total % figure can't be higher than % for women and girls and/or % for men and boys\",\"\"),\"\"))","v":""},null,null,"Cambodia"]
[null,"Total # people in the in the population on which CARE seeks to impact",null,"# women and girls in the in the population on which CARE seeks to impact",null,"# men and boys in the in the population on which CARE seeks to impact",null,{"$f":"IF(AND(E33=\"\",G33=\"\"),\"\",IF(C33<(G33+E33),IF(C33<(G33+E33),\"Attention: Total # figure can't be smaller than the sum of # for women and girls and/or # for men and boys\",\"\"),\"\"))","v":""},null,null,"Cameroon"]
["Latest measurement in the FY",{"$f":"B32","v":"% population  living in households with access to basic services in the population on which CARE seeks to impact"},null,{"$f":"D32","v":"% women and girls living in households with access to basic services in the population on which CARE seeks to impact"},null,{"$f":"F32","v":"% men and boys living in households with access to basic services in the population on which CARE seeks to impact"},null,{"$f":"IF(AND(E34=\"\",G34=\"\"),\"\",IF(C34>G34,IF(C34>E34,\"Attention: Total % figure can't be higher than % for women and girls and/or % for men and boys\",\"\"),\"\"))","v":""},null,null,"Canada"]
[null,{"$f":"B33","v":"Total # people in the in the population on which CARE seeks to impact"},null,{"$f":"D33","v":"# women and girls in the in the population on which CARE seeks to impact"},null,{"$f":"F33","v":"# men and boys in the in the population on which CARE seeks to impact"},null,{"$f":"IF(AND(E35=\"\",G35=\"\"),\"\",IF(C35<(G35+E35),IF(C35<(G35+E35),\"Attention: Total # figure can't be smaller than the sum of # for women and girls and/or # for men and boys\",\"\"),\"\"))","v":""},null,null,"Cape Verde"]
["Please describe the exact indicator you have used in your project or initiative, reported in the figures above",null,null,"Does the impact population number reported above include family members","Please share any additional comments you may have about the reporting of the project's contribution to this indicator. Examples: additional details on the data reported above (e.g. dates of the measurement), data from previous measurements, data with a different level of disaggregation (e.g. age, class, race, etc.), qualitative data supporting this data, etc. ",null,null,null,null,null,"Central African Republic"]
[null,null,null,"(Select from list)",null,null,null,null,null,null,"Chad"]
["Contribution to CARE's 2020 Program Strategy targets:","Total new impact related to this indicator\n(# additional people living in households with access to basic services) ",null,{"$f":"IFERROR(C34*C35-C32*C35,\"\")","v":0},"Total new impact towards Outcome Area targets (including family members)\n",null,null,{"$f":"IFERROR(IF(D37=\"NO\",D38*$E$13,D38),D38)","v":0},null,null,"Chile"]
["Other indicators related to Poverty and Social Injustice: Please report data on any other related indicators that shows CARE & partners' contributions to tackling poverty and social injustices",null,null,null,null,null,null,null,null,null,"China"]
[null,null,null,null,null,null,null,null,null,null,"Colombia"]
["Outcome: Humanitarian Assistance ",null,null,null,null,null,null,null,null,null,"Comoros"]
["Indicator 4. # and % of disaster/crisis-affected people supported through/by CARE who: ",null,null,null,null,null,null,null,null,null,"Congo, Democratic Republic of"]
["Obtained humanitarian assistance that is fully in line with CARE's and other global standards","Total # who obtained humanitarian assistance fully in line with CARE's and other global standards",null,"# women and girls who obtained humanitarian assistance fully in line with CARE's and other global standards",null,"# men and boys who obtained humanitarian assistance fully in line with CARE's and other global standards",null,{"$f":"IF(AND(E43=\"\",G43=\"\"),\"\",IF(C43<(G43+E43),IF(C43<(G43+E43),\"Attention: Total # figure can't be smaller than the sum of # for women and girls and/or # for men and boys\",\"\"),\"\"))","v":""},null,null,"Congo, Republic of the"]
[null,"Total # disaster/crisis-affected  people in need of humanitarian assistance (total figures not just for populations targeted by CARE)",null,"# disaster/crisis-affected women and girls in need of humanitarian assistance (total figures not just for populations targeted by CARE)",null,"# disaster/crisis-affected men and boys in need of humanitarian assistance (total figures not just for populations targeted by CARE)",null,{"$f":"IF(C44<C43,\"Total number of people in need cannot be smaller than the total participants supported by CARE \",\"\")","v":""},null,null,"Costa Rica"]
[null,null,null,null,null,null,null,null,null,null,"Cote d'Ivoire"]
["Obtained adequate emergency shelter ","Total # \nsupported through/by CARE, with emergency shelter ",null,"# women and girls\n  supported through/by CARE, with emergency shelter ",null,"# men and boys\nsupported through/by CARE, with emergency shelter ",null,{"$f":"IF(AND(E46=\"\",G46=\"\"),\"\",IF(C46<(G46+E46),IF(C46<(G46+E46),\"Attention: Total # figure can't be smaller than the sum of # for women and girls and/or # for men and boys\",\"\"),\"\"))","v":""},null,null,"Croatia"]
[null,"Total # disaster/crisis-affected  people in the impact population, with need for shelter",null,"# disaster/crisis-affected women and girls in the impact population, with need for shelter",null,"# disaster/crisis-affected men and boys in the impact population, with need for shelter",null,{"$f":"IF(C47<C46,\"Total number of people in need cannot be smaller than the total participants supported by CARE \",\"\")","v":""},null,null,"Cuba"]
["Obtained or recovered adequate housing","Total # \nsupported through/by CARE, with adequate housing",null,"# women and girls\n  supported  through/by CARE, with adequate housing",null,"# men and boys\nsupported  through/by CARE, with adequate housing",null,{"$f":"IF(AND(E48=\"\",G48=\"\"),\"\",IF(C48<(G48+E48),IF(C48<(G48+E48),\"Attention: Total # figure can't be smaller than the sum of # for women and girls and/or # for men and boys\",\"\"),\"\"))","v":""},null,null,"Curacao"]
[null,"Total # disaster/crisis-affected  people in the impact population, with need for housing",null,"# disaster/crisis-affected women and girls in the impact population, with need for housing",null,"# disaster/crisis-affected men and boys in the impact population, with need for housing",null,{"$f":"IF(C49<C48,\"Total number of people in need cannot be smaller than the total participants supported by CARE \",\"\")","v":""},null,null,"Cyprus"]
["Had access to safe drinking water ","Total # \nsupported through/by CARE, with access to safe drinking water",null,"# women and girls\n  supported through/by CARE, with access to safe drinking water",null,"# men and boys\nsupported through/by CARE, with access to safe drinking water",null,{"$f":"IF(AND(E50=\"\",G50=\"\"),\"\",IF(C50<(G50+E50),IF(C50<(G50+E50),\"Attention: Total # figure can't be smaller than the sum of # for women and girls and/or # for men and boys\",\"\"),\"\"))","v":""},null,null,"Czech Republic"]
[null,"Total # disaster/crisis-affected  people in the impact population, with need for drinking water",null,"# disaster/crisis-affected women and girls in the impact population, with need for drinking water",null,"# disaster/crisis-affected men and boys in the impact population, with need for drinking water",null,{"$f":"IF(C51<C50,\"Total number of people in need cannot be smaller than the total participants supported by CARE \",\"\")","v":""},null,null,"Denmark"]
["Had access to adequate sanitation facilities ","Total # \nsupported through/by CARE, with access to adequate sanitation facilities",null,"# women and girls\n  supported through/by CARE, with access to adequate sanitation facilities",null,"# men and boys\nsupported through/by CARE, with access to adequate sanitation facilities",null,{"$f":"IF(AND(E52=\"\",G52=\"\"),\"\",IF(C52<(G52+E52),IF(C52<(G52+E52),\"Attention: Total # figure can't be smaller than the sum of # for women and girls and/or # for men and boys\",\"\"),\"\"))","v":""},null,null,"Djibouti"]
[null,"Total # disaster/crisis-affected  people in the impact population, with need for sanitation facilities",null,"# disaster/crisis-affected women and girls in the impact population, with need for sanitation facilities",null,"# disaster/crisis-affected men and boys in the impact population, with need for sanitation facilities",null,{"$f":"IF(C53<C52,\"Total number of people in need cannot be smaller than the total participants supported by CARE \",\"\")","v":""},null,null,"Dominica"]
["Used adequate hygiene practices","Total # \nsupported through/by CARE, applying adequate hygiene practices",null,"# women and girls\n  supported through/by CARE, applying adequate hygiene practices",null,"# men and boys\nsupported through/by CARE, applying adequate hygiene practices",null,{"$f":"IF(AND(E54=\"\",G54=\"\"),\"\",IF(C54<(G54+E54),IF(C54<(G54+E54),\"Attention: Total # figure can't be smaller than the sum of # for women and girls and/or # for men and boys\",\"\"),\"\"))","v":""},null,null,"Dominican Republic"]
[null,"Total # disaster/crisis-affected  people in the impact population, with need for water, sanitation and hygiene support",null,"# disaster/crisis-affected women and girls in the impact population, with need for water, sanitation and hygiene support",null,"# disaster/crisis-affected men and boys in the impact population, with need for water, sanitation and hygiene support",null,{"$f":"IF(C55<C54,\"Total number of people in need cannot be smaller than the total participants supported by CARE \",\"\")","v":""},null,null,"Ecuador"]
["Obtained adequate food quantities and quality","Total # \nsupported through/by CARE, with adequate food quantities and quality",null,"# women and girls\n  supported through/by CARE, with adequate food quantities and quality",null,"# men and boys\nsupported through/by CARE, with adequate food quantities and quality",null,{"$f":"IF(AND(E56=\"\",G56=\"\"),\"\",IF(C56<(G56+E56),IF(C56<(G56+E56),\"Attention: Total # figure can't be smaller than the sum of # for women and girls and/or # for men and boys\",\"\"),\"\"))","v":""},null,null,"Egypt"]
[null,"Total # disaster/crisis-affected  people in the impact population, with need for food",null,"# disaster/crisis-affected women and girls in the impact population, with need for food",null,"# disaster/crisis-affected men and boys in the impact population, with need for food",null,{"$f":"IF(C57<C56,\"Total number of people in need cannot be smaller than the total participants supported by CARE \",\"\")","v":""},null,null,"El Salvador"]
["Adopted adequate nutritional practices","Total # \nsupported through/by CARE, applying adequate nutritional practices",null,"# women and girls\n  supported through/by CARE, applying adequate nutritional practices",null,"# men and boys\nsupported through/by CARE, applying adequate nutritional practices",null,{"$f":"IF(AND(E58=\"\",G58=\"\"),\"\",IF(C58<(G58+E58),IF(C58<(G58+E58),\"Attention: Total # figure can't be smaller than the sum of # for women and girls and/or # for men and boys\",\"\"),\"\"))","v":""},null,null,"Equatorial Guinea"]
[null,"Total # disaster/crisis-affected  people in the impact population, with need for with need for food and nutrition support",null,"# disaster/crisis-affected women and girls in the impact population, with need for food and nutrition support",null,"# disaster/crisis-affected men and boys in the impact population, with need for food and nutrition support",null,{"$f":"IF(C59<C58,\"Total number of people in need cannot be smaller than the total participants supported by CARE \",\"\")","v":""},null,null,"Eritrea"]
["Had access to at least one SRH service (especially women of reproductive age and adolescent girls)","Total # \nsupported through/by CARE, with access to at least one SRH service",null,"# women and girls\n  supported through/by CARE, with access to at least one SRH service",null,"# men and boys\nsupported through/by CARE, with access to at least one SRH service",null,{"$f":"IF(AND(E60=\"\",G60=\"\"),\"\",IF(C60<(G60+E60),IF(C60<(G60+E60),\"Attention: Total # figure can't be smaller than the sum of # for women and girls and/or # for men and boys\",\"\"),\"\"))","v":""},null,null,"Estonia"]
[null,"Total # disaster/crisis-affected  people in the impact population, with need for SRH services",null,"# disaster/crisis-affected women and girls in the impact population, with need for SRH services",null,"# disaster/crisis-affected men and boys in the impact population, with need for SRH services",null,{"$f":"IF(C61<C60,\"Total number of people in need cannot be smaller than the total participants supported by CARE \",\"\")","v":""},null,null,"Ethiopia"]
["Recovered household goods, assets, and/or income opportunities ","Total # supported through/by CARE, with recovered households or income opportunities",null,"# women and girls\n  supported through/by CARE, with recovered households or income opportunities\n (supported through/by CARE)",null,"# men and boys supported through/by CARE, with recovered households or income opportunities",null,{"$f":"IF(AND(E62=\"\",G62=\"\"),\"\",IF(C62<(G62+E62),IF(C62<(G62+E62),\"Attention: Total # figure can't be smaller than the sum of # for women and girls and/or # for men and boys\",\"\"),\"\"))","v":""},null,null,"Fiji"]
[null,"Total # disaster/crisis-affected  people in the impact population, with need for household or income recovery support",null,"# disaster/crisis-affected women and girls in the impact population, with need for household or income recovery support",null,"# disaster/crisis-affected men and boys in the impact population, with need for household or income recovery support",null,{"$f":"IF(C63<C62,\"Total number of people in need cannot be smaller than the total participants supported by CARE \",\"\")","v":""},null,null,"Finland"]
["Please describe the exact indicators you have used to report the figures above",null,null,"Do the total numbers supported by CARE reported above include family members","Please share any additional comments you may have about the reporting of the project's contribution to this indicator. Examples: additional details on the data reported above (e.g. dates of the measurement), data from previous measurements, data with a different level of disaggregation (e.g. age, class, race, etc.), qualitative data supporting this data, etc. ",null,null,null,null,null,"France"]
[null,null,null,"(Select from list)",null,null,null,null,null,null,"Gabon"]
["Contribution to CARE's 2020 Program Strategy targets:","Total new impacts/outcomes related to this indicator\n(# people who have obtained humanitarian assistance that is fully in line with CARE's and other global standards) ",null,{"$f":"IFERROR(C43,\"\")","v":0},"Total new impacts/outcomes towards Outcome Area targets (including family members)",null,null,{"$f":"IFERROR(IF(D65=\"NO\",D66*$E$13,D66),D66)","v":0},null,null,"Gambia, The"]
["Indicator 5. % of disaster/crisis affected people in areas of CARE responses who report satisfaction with regards to relevance, timeliness and accountability of humanitarian interventions",null,null,null,null,null,null,null,null,null,"Georgia"]
["Satisfaction with CARE's humanitarian response","Total %  supported through/by CARE, satisfied with CARE's humanitarian intervention ",null,"% women and girls\n  supported through/by CARE, satisfied with CARE's humanitarian intervention ",null,"% men and boys  supported through/by CARE, satisfied with CARE's humanitarian intervention ",null,{"$f":"IF(AND(E68=\"\",G68=\"\"),\"\",IF(C68>G68,IF(C68>E68,\"Attention: Total % figure can't be higher than % for women and girls and/or % for men and boys\",\"\"),\"\"))","v":""},null,null,"Germany"]
[null," Total # of people supported through/by CARE",null,"Total  # women and girls supported through/by CARE",null,"Total number of # men and boys supported through/by CARE",null,{"$f":"IF(AND(E69=\"\",G69=\"\"),\"\",IF(C69<(G69+E69),IF(C69<(G69+E69),\"Attention: Total # figure can't be smaller than the sum of # for women and girls and/or # for men and boys\",\"\"),\"\"))","v":""},null,null,"Ghana"]
["Please describe the exact indicator you have used to report the figures above",null,null,"Do the total numbers supported by CARE reported above include family members","Please share any additional comments you may have about the reporting of the project's contribution to this indicator. Examples: additional details on the data reported above (e.g. dates of the measurement), data from previous measurements, data with a different level of disaggregation (e.g. age, class, race, etc.), qualitative data supporting this data, etc. ",null,null,null,null,null,"Greece"]
[null,null,null,"(Select from list)",null,null,null,null,null,null,"Grenada"]
["Contribution to CARE's 2020 Program Strategy targets:","Total new impacts/outcomes related to this indicator\n(# people  satisfied with regards to relevance, timeliness and accountability of humanitarian interventions) ",null,{"$f":"IFERROR(C68*C69,\"\")","v":0},"Total new impacts/outcomes towards Outcome Area targets (including family members)",null,null,{"$f":"IFERROR(IF(D71=\"NO\",D72*$E$13,D72),D72)","v":0},null,null,"Guatemala"]
["Other indicators related to Humanitarian: Please report data on any other related indicator that shows CARE & partners' contributions to this Outcome Area.",null,null,null,null,null,null,null,null,null,"Guinea"]
[null,null,null,null,null,null,null,null,null,null,"Guinea-Bissau"]
["Outcome: Sexual, Reproductive and Maternal Health and Rights",null,null,null,null,null,null,null,null,null,"Guyana"]
["Indicator 6. Demand satisfied for modern contraceptives among women aged 15-49 (SDG indicator 3.7.1)",null,null,null,null,null,null,null,null,null,"Haiti"]
["Baseline",null,"% demand satisfied for modern contraceptives among women 15-49 in the population on which CARE seeks to impact",null,"Latest measurement in the FY",null,{"$f":"C77","v":"% demand satisfied for modern contraceptives among women 15-49 in the population on which CARE seeks to impact"},null,null,null,"Holy See"]
[null,null,"# women 15-49 in the in the population on which CARE seeks to impact",null,null,null,{"$f":"C78","v":"# women 15-49 in the in the population on which CARE seeks to impact"},null,null,null,"Honduras"]
["Please describe the exact indicator you have used in your project or initiative, reported in the figures above",null,null,null,"Please share any additional comments you may have about the reporting of the project's contribution to this indicator. Examples: additional details on the data reported above (e.g. dates of the measurement), data from previous measurements, data with a different level of disaggregation (e.g. age, class, race, etc.), qualitative data supporting this data, etc. ",null,null,null,null,null,"Hong Kong"]
[null,null,null,null,null,null,null,null,null,null,"Hungary"]
["Contribution to CARE's 2020 Program Strategy targets:","Total new impacts related to this indicator\n(# additional women 15-49 whose demand for modern contraceptives has been met)",null,{"$f":"IFERROR((H77-D77)*H78,\"\")","v":0},"Total new & maintained impacts towards Outcome Area targets\n(# women 15-49 whose demand for modern contraceptives has been met)",null,null,{"$f":"IFERROR(H77*H78,\"\")","v":0},null,null,"Iceland"]
["Indicator 7. Proportion of births attended by skilled health personnel (SDG indicator 3.1.2)",null,null,null,null,null,null,null,null,null,"India"]
["Baseline",null,"% of births attended by skilled health personnel in the population on which CARE seeks to impact",null,"Latest measurement in the FY",null,{"$f":"C83","v":"% of births attended by skilled health personnel in the population on which CARE seeks to impact"},null,null,null,"Indonesia"]
[null,null,"# of births in a one-year period",null,null,null,{"$f":"C84","v":"# of births in a one-year period"},null,null,null,"Iran"]
["Please describe the exact indicator you have used in your project or initiative, reported in the figures above",null,null,null,"Please share any additional comments you may have about the reporting of the project's contribution to this indicator. Examples: additional details on the data reported above (e.g. dates of the measurement), data from previous measurements, data with a different level of disaggregation (e.g. age, class, race, etc.), qualitative data supporting this data, etc. ",null,null,null,null,null,"Iraq"]
[null,null,null,null,null,null,null,null,null,null,"Ireland"]
["Contribution to CARE's 2020 Program Strategy targets:","Total new impacts related to this indicator\n(# additional births attended by skilled health personnel)",null,{"$f":"IFERROR((H83-D83)*H84,\"\")","v":0},"Total new & maintained impacts towards Outcome Area targets\n(# births attended by skilled health personnel)",null,null,{"$f":"IFERROR(H83*H84,\"\")","v":0},null,null,"Israel"]
["Indicator 8. Adolescent birth rate per 1,000 women aged 15 to 19 years (SDG indicator 3.7.2). Proxy indicator: Age at first delivery.",null,null,null,null,null,null,null,null,null,"Italy"]
["Baseline",null," Adolescent birth rate (among young women aged 15 to 19 years) in the population on which CARE seeks to impact (per 1,000 adolescents)",null,"Latest measurement in the FY",null,{"$f":"C89","v":" Adolescent birth rate (among young women aged 15 to 19 years) in the population on which CARE seeks to impact (per 1,000 adolescents)"},null,null,null,"Jamaica"]
[null,null,"Total adolescent girls in the population on which CARE seeks to impact",null,null,null,{"$f":"C90","v":"Total adolescent girls in the population on which CARE seeks to impact"},null,null,null,"Japan"]
["Please describe the exact indicator you have used in your project or initiative, reported in the figures above",null,null,null,"Please share any additional comments you may have about the reporting of the project's contribution to this indicator. Examples: additional details on the data reported above (e.g. dates of the measurement), data from previous measurements, data with a different level of disaggregation (e.g. age, class, race, etc.), qualitative data supporting this data, etc. ",null,null,null,null,null,"Jordan"]
[null,null,null,null,null,null,null,null,null,null,"Kazakhstan"]
["Contribution to CARE's 2020 Program Strategy targets:","Total new impacts related to this indicator\n(# women 15 to 19 years not going through adolescent pregnancy)",null,{"$f":"IFERROR((D89-H89)/1000*H90,\"\")","v":0},null,null,null,null,null,null,"Kenya"]
["Indicator 9.  Proportion of women aged 15-49 who make their own informed decisions regarding sexual relations, contraceptive use and reproductive health care (SDG indicator 5.6.1)",null,null,null,null,null,null,null,null,null,"Kiribati"]
["Baseline",null,"% of women aged 15-49 who make their own informed decisions regarding sexual relations, contraceptive use and reproductive health care in the population on which CARE seeks to impact",null,"Latest measurement in the FY",null,{"$f":"C95","v":"% of women aged 15-49 who make their own informed decisions regarding sexual relations, contraceptive use and reproductive health care in the population on which CARE seeks to impact"},null,null,null,"Korea, North"]
[null,null,"# women aged 15-49 in the impact population",null,null,null,"# women aged 15-49 in the impact population",null,null,null,"Korea, South"]
["Please describe the exact indicator you have used in your project or initiative, reported in the figures above",null,null,null,"Please share any additional comments you may have about the reporting of the project's contribution to this indicator. Examples: additional details on the data reported above (e.g. dates of the measurement), data from previous measurements, data with a different level of disaggregation (e.g. age, class, race, etc.), qualitative data supporting this data, etc. ",null,null,null,null,null,"Kosovo"]
[null,null,null,null,null,null,null,null,null,null,"Kuwait"]
["Contribution to CARE's 2020 Program Strategy targets:","Total new impacts related to this indicator\n(# additional women 15 to 19 years making their own decisions regarding  sexual relations, contraceptive use and reproductive health care)",null,{"$f":"IFERROR((H95-D95)*H96,\"\")","v":0},"Total new & maintained impacts towards Outcome Area targets\n(# of women 15 to 19 years making their own decisions regarding  sexual relations, contraceptive use and reproductive health care)",null,null,{"$f":"IFERROR(H95*H96,\"\")","v":0},null,null,"Kyrgyzstan"]
["Other indicators related to Sexual, Reproductive and Maternal Health Rights: Please report data on any other related indicators that shows CARE & partners' contributions to this Outcome Area.",null,null,null,null,null,null,null,null,null,"Laos"]
[null,null,null,null,null,null,null,null,null,null,"Latvia"]
["Outcome: The Right to a Life Free from Violence ",null,null,null,null,null,null,null,null,null,"Lebanon"]
["Indicator 10. % of people who reject intimate partner violence",null,null,null,null,null,null,null,null,null,"Lesotho"]
["Baseline","Total % of people who reject intimate partner violence in the population on which CARE seeks to impact",null,"% women and girls who reject intimate partner violence in the population on which CARE seeks to impact",null,"% men and boys who reject intimate partner violence in the population on which CARE seeks to impact",null,{"$f":"IF(AND(E104=\"\",G104=\"\"),\"\",IF(C104>G104,IF(C104>E104,\"Attention: Total % figure can't be higher than % for women and girls and/or % for men and boys\",\"\"),\"\"))","v":""},null,null,"Liberia"]
[null,"# of people the population on which CARE seeks to impact",null,{"$f":"D107","v":"# women and girls in the in the population on which CARE seeks to impact"},null,"# men and boys in the in the population on which CARE seeks to impact",null,{"$f":"IF(AND(E105=\"\",G105=\"\"),\"\",IF(C105<(G105+E105),IF(C105<(G105+E105),\"Attention: Total # figure can't be smaller than the sum of # for women and girls and/or # for men and boys\",\"\"),\"\"))","v":""},null,null,"Libya"]
["Latest measurement in the FY",{"$f":"B104","v":"Total % of people who reject intimate partner violence in the population on which CARE seeks to impact"},null,{"$f":"D104","v":"% women and girls who reject intimate partner violence in the population on which CARE seeks to impact"},null,{"$f":"F104","v":"% men and boys who reject intimate partner violence in the population on which CARE seeks to impact"},null,{"$f":"IF(AND(E106=\"\",G106=\"\"),\"\",IF(C106>G106,IF(C106>E106,\"Attention: Total % figure can't be higher than % for women and girls and/or % for men and boys\",\"\"),\"\"))","v":""},null,null,"Liechtenstein"]
[null,{"$f":"B105","v":"# of people the population on which CARE seeks to impact"},null,"# women and girls in the in the population on which CARE seeks to impact",null,{"$f":"F105","v":"# men and boys in the in the population on which CARE seeks to impact"},null,{"$f":"IF(AND(E107=\"\",G107=\"\"),\"\",IF(C107<(G107+E107),IF(C107<(G107+E107),\"Attention: Total # figure can't be smaller than the sum of # for women and girls and/or # for men and boys\",\"\"),\"\"))","v":""},null,null,"Lithuania"]
["Please describe the exact indicator you have used in your project or initiative, reported in the figures above",null,null,null,"Please share any additional comments you may have about the reporting of the project's contribution to this indicator. Examples: additional details on the data reported above (e.g. dates of the measurement), data from previous measurements, data with a different level of disaggregation (e.g. age, class, race, etc.), qualitative data supporting this data, etc. \n\nNote: Data for this indicator can be disaggregated by the 5 justifications for violence, used to calculate the indicator: a) if she goes out without telling the husband, b) if she neglects the children, c) if she argues with the husband, d) if she refuses to have sex with the husband, and e) if she burns the food.",null,null,null,null,null,"Luxembourg"]
[null,null,null,null,null,null,null,null,null,null,"Macau"]
["Contribution to CARE's 2020 Program Strategy targets:","Total new impacts related to this indicator\n(# additional people rejecting intimate partner violence)",null,{"$f":"IFERROR(C106*C107-C104*C107,\"\")","v":0},"Total new & maintained impacts towards Outcome Area targets\n(# additional people rejecting intimate partner violence)",null,null,{"$f":"IFERROR(C106*C107,\"\")","v":0},null,null,"Macedonia"]
["Indicator 11. % of ever-partnered women and girls aged 15 years and older subjected to physical, sexual or psychological violence by a current or former intimate partner, in the last 12 months (SDG indicator 5.2.1)",null,null,null,null,null,null,null,null,null,"Madagascar"]
["Baseline","% women and girls aged 15 years and older subjected to violence by a current or former intimate partner in the population on which CARE seeks to impact",null,"Latest measurement in the FY",null,{"$f":"B112","v":"% women and girls aged 15 years and older subjected to violence by a current or former intimate partner in the population on which CARE seeks to impact"},null,null,null,null,"Malawi"]
[null,"# women and girls aged 15 years and older in the population on which CARE seeks to impact",null,null,null,{"$f":"B113","v":"# women and girls aged 15 years and older in the population on which CARE seeks to impact"},null,null,null,null,"Malaysia"]
["Please describe the exact indicator you have used in your project or initiative, reported in the figures above",null,null,null,"Please share any additional comments you may have about the reporting of the project's contribution to this indicator. Examples: additional details on the data reported above (e.g. dates of the measurement), data from previous measurements, data with a different level of disaggregation (e.g. age, class, race, etc.), qualitative data supporting this data, etc. \n\nNote: data for this indicator can be disaggregated by the different types of violence: physical, sexual or psychological",null,null,null,null,null,"Maldives"]
[null,null,null,null,null,null,null,null,null,null,"Mali"]
["Contribution to CARE's 2020 Program Strategy targets:","Total new impacts related to this indicator \n(# additional ever-partnered women and girls aged 15 years and older not subjected to physical, sexual or psychological violence by a current or former intimate partner, in the last 12 months)",null,{"$f":"IFERROR((C112-G112)*G113,\"\")","v":0},null,null,null,null,null,null,"Malta"]
["Indicator 12. % of women and girls aged 15 years and older subjected to sexual violence by persons other than an intimate partner, in the last 12 months (SDG indicator 5.2.2)",null,null,null,null,null,null,null,null,null,"Marshall Islands"]
["Baseline","% women and girls aged 15 years and older subjected to sexual violence by persons other than an intimate partner in the population on which CARE seeks to impact",null,"Latest measurement in the FY",null,{"$f":"B118","v":"% women and girls aged 15 years and older subjected to sexual violence by persons other than an intimate partner in the population on which CARE seeks to impact"},null,null,null,null,"Mauritania"]
[null,"# women and girls aged 15 years and older in the population on which CARE seeks to impact",null,null,null,{"$f":"B119","v":"# women and girls aged 15 years and older in the population on which CARE seeks to impact"},null,null,null,null,"Mauritius"]
["Please describe the exact indicator you have used in your project or initiative, reported in the figures above",null,null,null,"Please share any additional comments you may have about the reporting of the project's contribution to this indicator. Examples: additional details on the data reported above (e.g. dates of the measurement), data from previous measurements, data with a different level of disaggregation (e.g. age, class, race, etc.), qualitative data supporting this data, etc. \n\nNote: data for this indicator can be disaggregated by the different types of violence: physical, sexual or psychological",null,null,null,null,null,"Mexico"]
[null,null,null,null,null,null,null,null,null,null,"Micronesia"]
["Contribution to CARE's 2020 Program Strategy targets:","Total new impacts related to this indicator\n(# additional ever-partnered women and girls aged 15 years and older  not subjected to sexual violence by persons other than an intimate partner, in the last 12 months)",null,{"$f":"IFERROR((C118-G118)*G119,\"\")","v":0},null,null,null,null,null,null,"Moldova"]
["Other indicators related to A Life Free From Violence: Please report data on any other related indicators that shows CARE & partners' contributions to this Outcome Area.",null,null,null,null,null,null,null,null,null,"Monaco"]
[null,null,null,null,null,null,null,null,null,null,"Mongolia"]
["Outcome: Food and Nutrition Security & Climate Change Resilience",null,null,null,null,null,null,null,null,null,"Montenegro"]
["Indicator 13. Prevalence of the population with moderate or severe food insecurity, based on the Food Insecurity Experience Scale (FIES) (SDG indicator 2.1.2)",null,null,null,null,null,null,null,null,null,"Morocco"]
["Baseline (moderate and severe)","Total % with moderate or severe food insecurity in the population on which CARE seeks to impact",null,"% women and girls with moderate or severe food insecurity in the population on which CARE seeks to impact",null,"% men and boys with moderate or severe food insecurity in the population on which CARE seeks to impact",null,{"$f":"IF(AND(E127=\"\",G127=\"\"),\"\",IF(C127>G127,IF(C127>E127,\"Attention: Total % figure can't be higher than % for women and girls and/or % for men and boys\",\"\"),\"\"))","v":""},null,null,"Mozambique"]
[null,"Total # of people in the population on which CARE seeks to impact",null,"# women and girls in the population on which CARE seeks to impact",null,"# men and boys in the population on which CARE seeks to impact",null,{"$f":"IF(AND(E128=\"\",G128=\"\"),\"\",IF(C128<(G128+E128),IF(C128<(G128+E128),\"Attention: Total # figure can't be smaller than the sum of # for women and girls and/or # for men and boys\",\"\"),\"\"))","v":""},null,null,"Myanmar"]
["Latest measurement in the FY (moderate and severe)",{"$f":"B127","v":"Total % with moderate or severe food insecurity in the population on which CARE seeks to impact"},null,{"$f":"D127","v":"% women and girls with moderate or severe food insecurity in the population on which CARE seeks to impact"},null,{"$f":"F127","v":"% men and boys with moderate or severe food insecurity in the population on which CARE seeks to impact"},null,{"$f":"IF(AND(E129=\"\",G129=\"\"),\"\",IF(C129>G129,IF(C129>E129,\"Attention: Total % figure can't be higher than % for women and girls and/or % for men and boys\",\"\"),\"\"))","v":""},null,null,"Namibia"]
[null,{"$f":"B128","v":"Total # of people in the population on which CARE seeks to impact"},null,{"$f":"D128","v":"# women and girls in the population on which CARE seeks to impact"},null,{"$f":"F128","v":"# men and boys in the population on which CARE seeks to impact"},null,{"$f":"IF(AND(E130=\"\",G130=\"\"),\"\",IF(C130<(G130+E130),IF(C130<(G130+E130),\"Attention: Total # figure can't be smaller than the sum of # for women and girls and/or # for men and boys\",\"\"),\"\"))","v":""},null,null,"Nauru"]
["Please describe the exact indicator you have used in your project or initiative, reported in the figures above",null,null,"Does the impact population number reported above include family members","Please share any additional comments you may have about the reporting of the project's contribution to this indicator. Examples: additional details on the data reported above (e.g. dates of the measurement), data from previous measurements, data with a different level of disaggregation (e.g. age, class, race, etc.), qualitative data supporting this data, etc. ",null,null,null,null,null,"Nepal"]
[null,null,null,"(Select from list)",null,null,null,null,null,null,"Netherlands"]
["Contribution to CARE's 2020 Program Strategy targets:","Total new impact related to this indicator\n(# additional people who are no longer facing moderate or severe food insecurity)",null,{"$f":"IFERROR(C127*C130-C129*C130,\"\")","v":0},"Total new impact towards Outcome Area targets (including family members)",null,null,{"$f":"IFERROR(IF(D132=\"NO\",D133*$E$13,D133),D133)","v":0},null,null,"Netherlands Antilles"]
["Indicator 14. Prevalence of stunting among girls and boys under the age of five (SDG indicator 2.2.1)",null,null,null,null,null,null,null,null,null,"New Zealand"]
["Baseline","Total % of stunting in girls and boys under 5 in the population on which CARE seeks to impact",null,"% stunting in girls under 5 in the population on which CARE seeks to impact",null,"% stunting in boys under 5in the population on which CARE seeks to impact",null,{"$f":"IF(AND(E135=\"\",G135=\"\"),\"\",IF(C135>G135,IF(C135>E135,\"Attention: Total % figure can't be higher than % for women and girls and/or % for men and boys\",\"\"),\"\"))","v":""},null,null,"Nicaragua"]
[null,"Total # girls and boys under 5 in the population on which CARE seeks to impact",null,"# girls under 5 in the population on which CARE seeks to impact",null,"# boys under 5 in the population on which CARE seeks to impact",null,{"$f":"IF(AND(E136=\"\",G136=\"\"),\"\",IF(C136<(G136+E136),IF(C136<(G136+E136),\"Attention: Total # figure can't be smaller than the sum of # for women and girls and/or # for men and boys\",\"\"),\"\"))","v":""},null,null,"Niger"]
["Latest measurement in the FY ",{"$f":"B135","v":"Total % of stunting in girls and boys under 5 in the population on which CARE seeks to impact"},null,{"$f":"D135","v":"% stunting in girls under 5 in the population on which CARE seeks to impact"},null,{"$f":"F135","v":"% stunting in boys under 5in the population on which CARE seeks to impact"},null,{"$f":"IF(AND(E137=\"\",G137=\"\"),\"\",IF(C137>G137,IF(C137>E137,\"Attention: Total % figure can't be higher than % for women and girls and/or % for men and boys\",\"\"),\"\"))","v":""},null,null,"Nigeria"]
[null,{"$f":"B136","v":"Total # girls and boys under 5 in the population on which CARE seeks to impact"},null,{"$f":"D136","v":"# girls under 5 in the population on which CARE seeks to impact"},null,{"$f":"F136","v":"# boys under 5 in the population on which CARE seeks to impact"},null,{"$f":"IF(AND(E138=\"\",G138=\"\"),\"\",IF(C138<(G138+E138),IF(C138<(G138+E138),\"Attention: Total # figure can't be smaller than the sum of # for women and girls and/or # for men and boys\",\"\"),\"\"))","v":""},null,null,"Norway"]
["Please describe the exact indicator you have used in your project or initiative, reported in the figures above",null,null,"Does the impact population number reported above include family members","Please share any additional comments you may have about the reporting of the project's contribution to this indicator. Examples: additional details on the data reported above (e.g. dates of the measurement), data from previous measurements, data with a different level of disaggregation (e.g. age, class, race, etc.), qualitative data supporting this data, etc. ",null,null,null,null,null,"Oman"]
[null,null,null,"(Select from list)",null,null,null,null,null,null,"Pakistan"]
["Contribution to CARE's 2020 Program Strategy targets:","Total new impact related to this indicator\n(# additional girls and boys under the age of five who are no longer stunted)",null,{"$f":"C135*C138-C137*C138","v":0},"Total new impact towards Outcome Area targets (including family members)",null,null,{"$f":"IFERROR(IF(D140=\"NO\",D141*$E$13,D141),D141)","v":0},null,null,"Palau"]
["Indicator 15. % of people better able to build resilience to the effects of climate change and variability",null,null,null,null,null,null,null,null,null,"Palestinian Territories"]
["Baseline","Total % of people better able to build resilience to the effects of climate change and variability in the population on which CARE seeks to impact",null,"% women and girls better able to build resilience to the effects of climate change and variability in the population on which CARE seeks to impact",null,"% men and boys better able to build resilience to the effects of climate change and variability in the population on which CARE seeks to impact",null,{"$f":"IF(AND(E143=\"\",G143=\"\"),\"\",IF(C143>G143,IF(C143>E143,\"Attention: Total % figure can't be higher than % for women and girls and/or % for men and boys\",\"\"),\"\"))","v":""},null,null,"Panama"]
[null,"Total #  people in the population on which CARE seeks to impact",null,"# women and girls in the in the population on which CARE seeks to impact",null,"# men and boys in the in the population on which CARE seeks to impact",null,{"$f":"IF(AND(E144=\"\",G144=\"\"),\"\",IF(C144<(G144+E144),IF(C144<(G144+E144),\"Attention: Total # figure can't be smaller than the sum of # for women and girls and/or # for men and boys\",\"\"),\"\"))","v":""},null,null,"Papua New Guinea"]
["Latest measurement in the FY","Total % of people better able to build resilience to the effects of climate change and variability in the population on which CARE seeks to impact",null,"% women and girls better able to build resilience to the effects of climate change and variability in the population on which CARE seeks to impact",null,"% men and boys better able to build resilience to the effects of climate change and variability in the population on which CARE seeks to impact",null,{"$f":"IF(AND(E145=\"\",G145=\"\"),\"\",IF(C145>G145,IF(C145>E145,\"Attention: Total % figure can't be higher than % for women and girls and/or % for men and boys\",\"\"),\"\"))","v":""},null,null,"Paraguay"]
[null,"Total #  people in the population on which CARE seeks to impact",null,"# women and girls in the in the population on which CARE seeks to impact",null,"# men and boys in the in the population on which CARE seeks to impact",null,{"$f":"IF(AND(E146=\"\",G146=\"\"),\"\",IF(C146<(G146+E146),IF(C146<(G146+E146),\"Attention: Total # figure can't be smaller than the sum of # for women and girls and/or # for men and boys\",\"\"),\"\"))","v":""},null,null,"Peru"]
["Please describe the exact indicator you have used in your project or initiative, reported in the figures above",null,null,"Does the impact population number reported above include family members","Please share any additional comments you may have about the reporting of the project's contribution to this indicator. Examples: additional details on the data reported above (e.g. dates of the measurement), data from previous measurements, data with a different level of disaggregation (e.g. age, class, race, etc.), qualitative data supporting this data, etc. ",null,null,null,null,null,"Philippines"]
[null,null,null,"(Select from list)",null,null,null,null,null,null,"Poland"]
["Contribution to CARE's 2020 Program Strategy targets:","Total new impact related to this indicator\n(# additional people who are better able to build resilience)",null,{"$f":"C145*C146-C143*C146","v":0},"Total new impact towards Outcome Area targets (including family members)",null,null,{"$f":"IFERROR(IF(D148=\"NO\",D149*$E$13,D149),D149)","v":0},null,null,"Portugal"]
["Other indicators related to Food and Nutrition Security & Climate Change Resilience : Please report data on any other related indicator that shows CARE & partners' contributions to this Outcome Area, such as the FNS Supplementary Indicators.",null,null,null,null,null,null,null,null,null,"Qatar"]
[null,null,null,null,null,null,null,null,null,null,"Romania"]
["Outcome: Women's Economic Empowerment ",null,null,null,null,null,null,null,null,null,"Russia"]
["Indicator 16. # and % of women who are active users of financial services (disaggregated by informal and formal services) ",null,null,null,null,null,null,null,null,null,"Rwanda"]
["Active users of INFORMAL financial services ",null,null,null,null,null,null,null,null,null,"Saint Kitts and Nevis"]
["Baseline",null,"# women who are active users of informal financial services  in the population on which CARE seeks to impact",null,"Latest measurement in the FY",null,{"$f":"C155","v":"# women who are active users of informal financial services  in the population on which CARE seeks to impact"},null,null,null,"Saint Lucia"]
[null,null,"# women in the in the population on which CARE seeks to impact",null,null,null,"# women in the population on which CARE seeks to impact",null,null,null,"Saint Vincent and the Grenadines"]
["Contribution to CARE's 2020 Program Strategy targets:","Total new impacts related to this indicator\n(# additional women who are active users of informal financial services)",null,{"$f":"IFERROR(H155-D155,\"\")","v":0},"Change in % of women accessing (in percentage points)",null,null,{"$f":"IFERROR((H155/H156-D155/H156),\"\")","v":""},null,null,"Samoa"]
["Active users of FORMAL financial services ",null,null,null,null,null,null,null,null,null,"San Marino"]
["Baseline",null,"# women who are active users of formal financial services  in the population on which CARE seeks to impact",null,"Latest measurement in the FY",null,"# women who are active users of formal financial services  in the population on which CARE seeks to impact",null,null,null,"Sao Tome and Principe"]
[null,null,{"$f":"C156","v":"# women in the in the population on which CARE seeks to impact"},null,null,null,{"$f":"C160","v":"# women in the in the population on which CARE seeks to impact"},null,null,null,"Saudi Arabia"]
["Contribution to CARE's 2020 Program Strategy targets:","Total new impacts related to this indicator\n(# additional women who are active users of informal financial services)",null,{"$f":"IFERROR(H159-D159,\"\")","v":0},"Change in % of women accessing (in percentage points)",null,null,{"$f":"IFERROR((H159/H160-D159/H160),\"\")","v":""},null,null,"Senegal"]
["Please describe the exact indicators you have used in your project or initiative, reported in the figures above",null,null,null,"Please share any additional comments you may have about the reporting of the project's contribution to this indicator. Examples: additional details on the data reported above (e.g. dates of the measurement), data from previous measurements, data with a different level of disaggregation (e.g. age, class, race, etc.), qualitative data supporting this data, etc. ",null,null,null,null,null,"Serbia"]
[null,null,null,null,null,null,null,null,null,null,"Seychelles"]
["Indicator 17. % of women who (report they) are able to equally participate in household financial decision-making",null,null,null,null,null,null,null,null,null,"Sierra Leone"]
["Baseline",null,"% women who are able to equally participate in household financial decision-making in the population on which CARE seeks to impact",null,"Latest measurement in the FY",null,{"$f":"C165","v":"% women who are able to equally participate in household financial decision-making in the population on which CARE seeks to impact"},null,null,null,"Singapore"]
[null,null,"# women in the population on which CARE seeks to impact",null,null,null,{"$f":"C166","v":"# women in the population on which CARE seeks to impact"},null,null,null,"Sint Maarten"]
["Please describe the exact indicator you have used in your project or initiative, reported in the figures above",null,null,null,"Please share any additional comments you may have about the reporting of the project's contribution to this indicator. Examples: additional details on the data reported above (e.g. dates of the measurement), data from previous measurements, data with a different level of disaggregation (e.g. age, class, race, etc.), qualitative data supporting this data, etc. ",null,null,null,null,null,"Slovakia"]
[null,null,null,null,null,null,null,null,null,null,"Slovenia"]
["Contribution to CARE's 2020 Program Strategy targets:","Total new impacts related to this indicator\n(# additional women equally participating in household financial decision-making)",null,{"$f":"IFERROR((H165-D165)*H166,\"\")","v":0},"Total new & maintained impacts towards Outcome Area targets\n(# of women equally participating in household financial decision-making)",null,null,{"$f":"IFERROR(H165*H166,\"\")","v":0},null,null,"Solomon Islands"]
["Indicator 18. # and % of women with union, women's group or cooperative membership through which they can voice their labor rights",null,null,null,null,null,null,null,null,null,"Somalia"]
["Baseline",null,"# of women with union, women's group or cooperative membership to voice their labor rights",null,"Latest measurement in the FY",null,"# of women with union, women's group or cooperative membership to voice their labor rights",null,null,null,"South Africa"]
[null,null,"# women in the population on which CARE seeks to impact",null,null,null,{"$f":"C172","v":"# women in the population on which CARE seeks to impact"},null,null,null,"South Sudan"]
["Please describe the exact indicator you have used in your project or initiative, reported in the figures above",null,null,null,"Please share any additional comments you may have about the reporting of the project's contribution to this indicator. Examples: additional details on the data reported above (e.g. dates of the measurement), data from previous measurements, data with a different level of disaggregation (e.g. age, class, race, etc.), qualitative data supporting this data, etc. ",null,null,null,null,null,"Spain"]
[null,null,null,null,null,null,null,null,null,null,"Sri Lanka"]
["Contribution to CARE's 2020 Program Strategy targets:","Total new impacts related to this indicator\n(# additional women with union, women's group or cooperative membership through which they can voice their labor rights)",null,{"$f":"IFERROR(H171-D171,\"\")","v":0},"Change in % of women with membership (in percentage points)",null,null,{"$f":"IFERROR((H171/H172-D171/H172),\"\")","v":""},null,null,"Sudan"]
["Other indicators related to Women's Economic Empowerment: Please report data on any other related indicator that shows CARE & partners' contributions to this Outcome Area, such as the WEE Supplementary Indicators.",null,null,null,null,null,null,null,null,null,"Suriname"]
[null,null,null,null,null,null,null,null,null,null,"Swaziland"]
["The CARE approach",null,null,null,null,null,null,null,null,null,"Sweden"]
["Indicator 19. # and % of people of all genders who have meaningfully participated in formal (government-led) and informal (civil society-led, private sector-led) decision-making spaces ",null,null,null,null,null,null,null,null,null,"Switzerland"]
["Baseline","# people supported by CARE and partners who have meaningfully participated in decision-making spaces ",null,"# women and girls supported by CARE and partners who have meaningfully participated in decision-making spaces ",null,"# men and boys supported by CARE and partners who have meaningfully participated in decision-making spaces ",null,{"$f":"IF(AND(E180=\"\",G180=\"\"),\"\",IF(C180<(G180+E180),IF(C180<(G180+E180),\"Attention: Total # figure can't be smaller than the sum of # for women and girls and/or # for men and boys\",\"\"),\"\"))","v":""},null,null,"Syria"]
[null,"# people supported by CARE and partners who held leadership positions in these decision-making spaces ",null,"# women and girls supported by CARE and partners who held leadership positions in these decision-making spaces ",null,"# men and boys supported by CARE and partners who held leadership positions in these decision-making spaces ",null,"",null,null,"Taiwan"]
["Latest measurement in the FY",{"$f":"B180","v":"# people supported by CARE and partners who have meaningfully participated in decision-making spaces "},null,{"$f":"D180","v":"# women and girls supported by CARE and partners who have meaningfully participated in decision-making spaces "},null,{"$f":"F180","v":"# men and boys supported by CARE and partners who have meaningfully participated in decision-making spaces "},null,"",null,null,"Tajikistan"]
[null,{"$f":"B181","v":"# people supported by CARE and partners who held leadership positions in these decision-making spaces "},null,{"$f":"D181","v":"# women and girls supported by CARE and partners who held leadership positions in these decision-making spaces "},null,{"$f":"F181","v":"# men and boys supported by CARE and partners who held leadership positions in these decision-making spaces "},null,"",null,null,"Tanzania"]
["Please describe the type(s) of decision-making spaces","Formal spaces (i.e. invited spaces where civil society has a seat and a vote/say, including traditional authorities. These may include constitutional assembly working groups or caucuses, human rights commissions, national action plan committees, sectorial advisory groups, province/governorate/district assembly meetings, district participatory budget or public audit meetings, district nutrition coordination committees or disaster management committees, community health and education committees, water or waste management committees, village/community/ward development committees or associations, etc.)",null,null,null,null,null,null,null,null,"Thailand"]
[null,"Informal spaces (e.g. community development forums, community scorecards, social audits, community action plan monitoring committees, citizens’ charter taskforces, peace clubs, health committee monitoring groups, parent-teacher committees, forestry management committees, advocacy steering committees, ward development forums, or other spaces which may provide a civic platform for our impact groups (e.g. VSLAs or producer groups that are used to promote women’s political participation).",null,null,null,null,null,null,null,null,"Timor-Leste"]
["Please describe the exact indicator you have used in your project or initiative, reported in the figures above",null,null,null,"Please share any additional comments you may have about the reporting of the project's contribution to this indicator. Examples: additional details on the data reported above (e.g. dates of the measurement), data from previous measurements, data with a different level of disaggregation (e.g. age, class, race, etc.), qualitative data supporting this data, etc. ",null,null,null,null,null,"Togo"]
[null,null,null,null,null,null,null,null,null,null,"Tonga"]
["Contribution to CARE's 2020 Program Strategy targets:","Increase in total #'s with meaningful participation",null,{"$f":"C182-C180","v":0},"Total increase in women in leadership positions",null,null,{"$f":"E183-E181","v":0},null,null,"Trinidad and Tobago"]
["Indicator 20. # of new or amended policies, legislation, public programs, and/or budgets responsive to the rights, needs and demands of people of all genders",null,null,null,null,null,null,null,null,null,"Tunisia"]
["Number of new or amended policies, legislation, public programs, and/or budgets",null,null,"Name and brief description of the new or amended policies, legislation, public programs, and/or budgets",null,null,null,null,null,null,"Turkey"]
["Please select YES for all options that apply to the focus of CARE's role in contributing to the new or amended policies, legislation, public programs, and/or budgets",null,"Adoption of new policy","(Select from list)","Advocacy against harmful policy","(Select from list)","Adoption of a CARE program model/approach","(Select from list)",null,null,"Turkmenistan"]
[null,null,"Implementation of existing policy","(Select from list)","Influencing national or international programs","(Select from list)","Influencing government’s participation in regional/global policy platforms (UN, WHO,etc)","(Select from list)",null,null,"Tuvalu"]
[null,null,"Budget allocation for policy","(Select from list)","Other (please describe):","(Select from list)",null,null,null,null,"Uganda"]
["Please briefly describe the achievements of CARE's role in contributing to the new or amended policies, legislation, public programs, and/or budgets",null,null,null,null,null,null,null,null,null,"Ukraine"]
["Number of people whose rights, needs and demands are voiced through the new or amended policies, legislation, programs and/or budgets",null,"Total #",null,"# women and girls",null,"# men and boys",null,null,null,"United Arab Emirates"]
["Please describe the exact indicator you have used in your project or initiative, reported in the figures above",null,null,null,"Please share any additional comments you may have about the reporting of the project's contribution to this indicator. Examples: additional details on the data reported above (e.g. dates of the measurement), data from previous measurements, data with a different level of disaggregation (e.g. age, class, race, etc.), qualitative data supporting this data, etc. ",null,null,null,null,null,"United Kingdom"]
[null,null,null,null,null,null,null,null,null,null,"United States of America"]
["Indicator 21. % of people that have actively engaged in reducing their vulnerabilities to the shocks that affect them ",null,null,null,null,null,null,null,null,null,"Uruguay"]
["Baseline","% total people  that have actively engaged in reducing their vulnerabilities to the shocks that affect them in the population on which CARE seeks to impact",null,"% women that have actively engaged in reducing their vulnerabilities to the shocks that affect them in the population on which CARE seeks to impact",null,"% men that have actively engaged in reducing their vulnerabilities to the shocks that affect them in the population on which CARE seeks to impact",null,{"$f":"IF(AND(E199=\"\",G199=\"\"),\"\",IF(C199>G199,IF(C199>E199,\"Attention: Total % figure can't be higher than % for women and girls and/or % for men and boys\",\"\"),\"\"))","v":""},null,null,"Uzbekistan"]
[null,"Total # people in the population on which CARE seeks to impact",null,"# women in the population on which CARE seeks to impact",null,"# men in the population on which CARE seeks to impact",null,{"$f":"IF(AND(E200=\"\",G200=\"\"),\"\",IF(C200<(G200+E200),IF(C200<(G200+E200),\"Attention: Total # figure can't be smaller than the sum of # for women and girls and/or # for men and boys\",\"\"),\"\"))","v":""},null,null,"Vanuatu"]
["Latest measurement in the FY",{"$f":"B199","v":"% total people  that have actively engaged in reducing their vulnerabilities to the shocks that affect them in the population on which CARE seeks to impact"},null,{"$f":"D199","v":"% women that have actively engaged in reducing their vulnerabilities to the shocks that affect them in the population on which CARE seeks to impact"},null,{"$f":"F199","v":"% men that have actively engaged in reducing their vulnerabilities to the shocks that affect them in the population on which CARE seeks to impact"},null,{"$f":"IF(AND(E201=\"\",G201=\"\"),\"\",IF(C201>G201,IF(C201>E201,\"Attention: Total % figure can't be higher than % for women and girls and/or % for men and boys\",\"\"),\"\"))","v":""},null,null,"Venezuela"]
[null,{"$f":"B200","v":"Total # people in the population on which CARE seeks to impact"},null,{"$f":"D200","v":"# women in the population on which CARE seeks to impact"},null,{"$f":"F200","v":"# men in the population on which CARE seeks to impact"},null,{"$f":"IF(AND(E202=\"\",G202=\"\"),\"\",IF(C202<(G202+E202),IF(C202<(G202+E202),\"Attention: Total # figure can't be smaller than the sum of # for women and girls and/or # for men and boys\",\"\"),\"\"))","v":""},null,null,"Vietnam"]
["Please describe the exact indicator you have used in your project or initiative, reported in the figures above",null,null,"Does the impact population number reported above include family members","Please share any additional comments you may have about the reporting of the project's contribution to this indicator. Examples: additional details on the data reported above (e.g. dates of the measurement), data from previous measurements, data with a different level of disaggregation (e.g. age, class, race, etc.), qualitative data supporting this data, etc. ",null,null,null,null,null,"West Bank and Gaza"]
[null,null,null,"(Select from list)",null,null,null,null,null,null,"Yemen"]
["Contribution to CARE's 2020 Program Strategy targets:","Total new impact related to this indicator\n(# additional people actively engaged in reducing their vulnerabilities to the shocks that affect them)",null,{"$f":"C201*C202-C199*C202","v":0},"Total new impact towards Outcome Area targets (including family members)",null,null,{"$f":"IFERROR(IF(D204=\"NO\",D205*$E$13,D205),D205)","v":0},null,null,"Zambia"]
["Other indicators related to Strengthening gender equality and women's voice; Promoting inclusive governance and/or Increasing resilience: Please report data on any other related indicator that shows CARE & partners' contributions to the Approach.",null,null,null,null,null,null,null,null,null,"Zimbabwe"]
[]
["Section 3:  Fiscal year information - Qualitative Contribution to CARE's Global Outcomes and Approach "]
["In order for CARE and partners to better understand how the project/initiative has contributed to the quantitative impact/outcomes/changes reported above, please describe the 3 main reasons that explain HOW and WHY those changes have come about place and HOW CARE and partners contributes to these changes (e.g. strategies used, models innovated, etc.)."]
[]
[]
[]
["Thank you for providing the information and completing the form!"]